bitfinex/quotes_BTCUSD_20220205
["timestamp","ask_amount","ask_price","bid_price","bid_amount"]
[1644044264802,0.54998766,41559.0,41546.0,0.003]
[1644044264803,0.060182,41554.0,41546.0,0.003]
[1644044265006,0.22244744,41549.0,41546.0,0.003]
[1644044265699,0.048,41548.0,41546.0,0.003]
[1644044266301,0.40788654,41547.0,41546.0,0.003]
[1644044266503,0.75,41546.0,41545.0,0.001]
[1644044266698,0.75,41546.0,41543.0,0.001]
[1644044266699,0.75,41545.0,41543.0,0.001]
[1644044266900,0.331792,41544.0,41543.0,0.001]
[1644044267098,0.379792,41544.0,41543.0,0.001]
[1644044267302,0.479792,41544.0,41543.0,0.001]
[1644044267499,0.60019122,41544.0,41543.0,0.001]
[1644044267700,0.65019122,41544.0,41543.0,0.001]
[1644044268143,0.529792,41544.0,41543.0,0.001]
[1644044268547,0.650178,41544.0,41543.0,0.001]
[1644044268743,0.95953217,41544.0,41543.0,0.001]
[1644044268944,0.89933584,41544.0,41543.0,0.001]
[1644044269147,0.379792,41544.0,41543.0,0.001]
[1644044269347,0.331792,41544.0,41543.0,0.001]
[1644044269548,0.27044744,41549.0,41543.0,0.05099999]
[1644044269745,0.75851887,41552.0,41543.0,0.05099999]
[1644044270144,0.75851887,41552.0,41545.0,0.04999999]
[1644044270347,0.331792,41551.0,41546.0,0.08762538]
[1644044270744,0.5625375,41551.0,41546.0,0.08762538]
[1644044271147,0.2307455,41551.0,41546.0,0.08840834]
[1644044271798,0.2307455,41551.0,41547.0,0.22124683]
[1644044272099,0.2307455,41551.0,41546.0,0.08840834]
[1644044272294,0.331792,41550.0,41546.0,0.08762538]
[1644044272695,0.35110196,41551.0,41543.0,0.001]
[1644044272696,0.06018,41549.0,41543.0,0.001]
[1644044273295,0.06018,41549.0,41543.0,0.23778089]
[1644044273596,0.2909245,41551.0,41543.0,0.23778089]
[1644044273597,0.35110047,41551.0,41543.0,0.23778089]
[1644044273797,0.391973,41549.0,41543.0,0.001]
[1644044273996,0.331792,41547.0,41543.0,0.001]
[1644044274496,0.431792,41547.0,41543.0,0.001]
[1644044274698,0.20463353,41544.0,41543.0,0.001]
[1644044275001,0.060191,41544.0,41543.0,0.001]
[1644044276241,0.391983,41544.0,41543.0,0.001]
[1644044276442,0.80931521,41544.0,41543.0,0.001]
[1644044276843,0.98835982,41544.0,41543.0,0.001]
[1644044277245,1.15364336,41544.0,41543.0,0.001]
[1644044277847,0.49707554,41544.0,41543.0,0.001]
[1644044278246,0.048,41549.0,41543.0,0.001]
[1644044278447,0.331792,41548.0,41543.0,0.001]
[1644044278849,0.431792,41548.0,41543.0,0.20576247]
[1644044279516,0.431792,41548.0,41543.0,0.20480192]
[1644044279919,0.431792,41548.0,41543.0,0.20336917]
[1644044280120,0.331792,41548.0,41543.0,0.20166235]
[1644044280320,0.30759951,41549.0,41543.0,0.20166235]
[1644044280516,0.060182,41549.0,41543.0,0.20088383]
[1644044280717,0.060182,41549.0,41544.0,0.00077851]
[1644044280916,0.060182,41549.0,41544.0,0.00096]
[1644044281316,0.060182,41549.0,41543.0,0.19996809]
[1644044281517,0.33276621,41549.0,41543.0,0.19996809]
[1644044281817,0.43276621,41549.0,41543.0,0.19996809]
[1644044282020,0.59804975,41549.0,41543.0,0.19996809]
[1644044282318,0.331792,41548.0,41547.0,0.08912927]
[1644044282822,0.431792,41548.0,41547.0,0.08912927]
[1644044283244,0.431792,41548.0,41547.0,0.08724986]
[1644044283442,0.431792,41548.0,41547.0,0.08546531]
[1644044283643,0.1,41548.0,41543.0,0.19996809]
[1644044283842,0.060182,41549.0,41543.0,0.19996809]
[1644044284444,0.16017975,41550.0,41543.0,0.19996809]
[1644044284445,0.1,41550.0,41543.0,0.19996809]
[1644044285348,0.39992897,41552.0,41543.0,0.19996809]
[1644044285747,0.49992897,41552.0,41543.0,0.19996809]
[1644044285946,0.391973,41551.0,41546.0,0.07956155]
[1644044286349,0.491973,41551.0,41546.0,0.07956155]
[1644044288791,0.431792,41551.0,41546.0,0.07956155]
[1644044290392,0.491973,41551.0,41546.0,0.07956155]
[1644044291544,0.486973,41551.0,41546.0,0.07956155]
[1644044292147,0.06018158,41550.0,41546.0,0.07956155]
[1644044292345,0.060182,41549.0,41546.0,0.07956155]
[1644044292949,0.0730313,41553.0,41546.0,0.07956155]
[1644044293150,0.431797,41552.0,41546.0,0.07956155]
[1644044294049,0.481797,41552.0,41550.0,0.2643107]
[1644044294295,0.331797,41551.0,41550.0,0.2643107]
[1644044294496,0.391978,41551.0,41550.0,0.2643107]
[1644044294700,0.491978,41551.0,41550.0,0.2643107]
[1644044294898,0.431797,41551.0,41550.0,0.2643107]
[1644044295395,0.431797,41551.0,41546.0,0.07956155]
[1644044295597,0.1,41551.0,41546.0,0.07956155]
[1644044295798,0.12035986,41552.0,41546.0,0.07956155]
[1644044296598,0.12035986,41552.0,41548.0,0.2290906]
[1644044296795,0.331797,41551.0,41548.0,0.2290906]
[1644044297195,0.431797,41551.0,41548.0,0.2290906]
[1644044297396,0.431797,41551.0,41547.0,0.00018125]
[1644044297598,0.431797,41551.0,41546.0,0.07956155]
[1644044298240,0.431797,41551.0,41546.0,0.0797428]
[1644044299545,0.431797,41551.0,41547.0,0.20190028]
[1644044299741,0.431797,41551.0,41546.0,0.07956155]
[1644044299941,0.481797,41551.0,41546.0,0.07956155]
[1644044300141,0.45216857,41550.0,41546.0,0.07956155]
[1644044300343,0.45216857,41550.0,41543.0,0.00018125]
[1644044300344,0.55216857,41550.0,41543.0,0.00018125]
[1644044300544,0.120378,41548.0,41542.0,0.00296034]
[1644044300743,0.76111044,41547.0,41542.0,0.00296034]
[1644044300948,0.76111044,41547.0,41542.0,0.00218125]
[1644044301143,1.02639398,41547.0,41542.0,0.00296031]
[1644044301346,0.64138796,41547.0,41542.0,0.00296031]
[1644044301545,0.16528354,41546.0,41542.0,0.00296031]
[1644044301795,0.30959096,41547.0,41542.0,0.00296031]
[1644044301992,0.4874053,41547.0,41542.0,0.00296031]
[1644044302190,0.060192,41545.0,41542.0,0.00218125]
[1644044302390,0.331797,41544.0,41542.0,0.00296031]
[1644044302590,0.120383,41545.0,41542.0,0.00277906]
[1644044302790,0.120383,41545.0,41542.0,0.00296031]
[1644044302791,0.060191,41545.0,41542.0,0.00296031]
[1644044302991,0.060191,41545.0,41543.0,0.08376006]
[1644044303193,0.060191,41545.0,41542.0,0.00296031]
[1644044303393,0.048,41544.0,41542.0,0.00218125]
[1644044303596,0.048,41544.0,41542.0,0.00277905]
[1644044304193,0.048,41544.0,41543.0,0.32739031]
[1644044304593,0.10818855,41544.0,41543.0,0.32739031]
[1644044304792,0.048,41544.0,41543.0,0.32739031]
[1644044306545,0.048,41544.0,41543.0,0.06988594]
[1644044306745,0.108191,41544.0,41543.0,0.06988594]
[1644044307646,0.108191,41544.0,41543.0,0.06949058]
[1644044308045,0.048,41544.0,41543.0,0.06949058]
[1644044308245,0.31528354,41547.0,41543.0,0.06949058]
[1644044308445,0.15,41547.0,41543.0,0.06967183]
[1644044308646,0.05,41547.0,41543.0,0.06967183]
[1644044309399,0.17037051,41547.0,41543.0,0.27599728]
[1644044310205,0.17037051,41547.0,41543.0,0.06967183]
[1644044312203,0.17037051,41547.0,41543.0,0.27599728]
[1644044313145,0.17037051,41547.0,41543.0,0.2065067]
[1644044313347,0.12038218,41546.0,41543.0,0.2065067]
[1644044313746,0.060189,41544.0,41543.0,0.2065067]
[1644044313952,0.060189,41544.0,41543.0,0.20632545]
[1644044314145,0.12037716,41545.0,41543.0,0.20632545]
[1644044314345,0.12037716,41545.0,41544.0,0.25279665]
[1644044314547,0.15,41547.0,41544.0,0.25279665]
[1644044314747,0.15,41547.0,41544.0,0.2529779]
[1644044315348,0.05,41547.0,41544.0,0.2529779]
[1644044315548,0.05,41547.0,41545.0,0.07766687]
[1644044315747,0.17036564,41548.0,41545.0,0.07766687]
[1644044315947,0.060185,41547.0,41545.0,0.07784812]
[1644044316147,0.060185,41547.0,41545.0,0.07766687]
[1644044317000,0.16017943,41550.0,41545.0,0.07766687]
[1644044317200,0.16017943,41550.0,41545.0,0.07784812]
[1644044317500,0.31593279,41550.0,41545.0,0.07784812]
[1644044317799,0.41593279,41550.0,41545.0,0.07784812]
[1644044318000,0.41593279,41550.0,41545.0,0.00018125]
[1644044318300,0.41593279,41550.0,41544.0,0.00018125]
[1644044318301,0.452178,41548.0,41544.0,0.00018125]
[1644044318505,0.502178,41548.0,41543.0,0.00018125]
[1644044318701,0.331797,41546.0,41542.0,0.00266028]
[1644044318900,0.431797,41546.0,41542.0,0.00266028]
[1644044319103,0.431797,41546.0,41542.0,0.00218125]
[1644044319299,0.431797,41546.0,41542.0,0.00266028]
[1644044319700,0.55218381,41546.0,41542.0,0.00266028]
[1644044319899,0.060194,41545.0,41542.0,0.00266028]
[1644044320100,0.1203853,41545.0,41542.0,0.00266028]
[1644044320303,0.1203853,41545.0,41542.0,0.00218125]
[1644044323152,0.29372714,41548.0,41543.0,0.26040028]
[1644044323352,0.29372714,41548.0,41543.0,0.26058153]
[1644044323754,0.23353914,41548.0,41543.0,0.26058153]
[1644044324152,0.28353914,41548.0,41543.0,0.00018125]
[1644044324404,0.1203853,41545.0,41542.0,0.20898537]
[1644044324602,0.1203853,41545.0,41542.0,0.00265992]
[1644044325005,0.1203853,41545.0,41542.0,0.00218125]
[1644044325399,0.1203853,41545.0,41542.0,0.22353962]
[1644044326800,0.1203853,41545.0,41542.0,0.00218125]
[1644044327801,0.1203853,41545.0,41542.0,0.24328988]
[1644044328250,0.060188,41544.0,41542.0,0.24328988]
[1644044328448,0.060188,41544.0,41542.0,0.24310863]
[1644044328650,0.1203853,41545.0,41542.0,0.24310863]
[1644044328851,0.05,41547.0,41542.0,0.44961533]
[1644044328852,0.11018056,41547.0,41542.0,0.44961533]
[1644044329248,0.11018056,41547.0,41542.0,0.49961532]
[1644044330049,0.11018056,41547.0,41542.0,0.29376854]
[1644044330249,0.11018056,41547.0,41542.0,0.50009399]
[1644044330250,0.17036356,41547.0,41542.0,0.50009399]
[1644044330450,0.18054556,41547.0,41542.0,0.29376854]
[1644044330950,0.18054556,41547.0,41542.0,0.50009399]
[1644044331150,0.18054556,41547.0,41542.0,0.24328988]
[1644044331350,0.18054556,41547.0,41542.0,0.24406743]
[1644044332203,0.18054556,41547.0,41542.0,0.24328988]
[1644044332400,0.18054556,41547.0,41542.0,0.24406743]
[1644044332802,0.18054556,41547.0,41542.0,0.29406742]
[1644044333002,0.18054556,41547.0,41542.0,0.50039287]
[1644044333202,0.18054556,41547.0,41542.0,0.24406743]
[1644044333404,0.06018664,41546.0,41542.0,0.24328988]
[1644044333602,0.120376,41545.0,41542.0,0.24406743]
[1644044334602,0.120376,41545.0,41542.0,0.29328987]
[1644044335406,0.120376,41545.0,41542.0,0.24328988]
[1644044336854,0.120376,41545.0,41542.0,0.29328987]
[1644044337055,0.060188,41545.0,41542.0,0.29328987]
[1644044337255,0.1,41548.0,41542.0,0.29328987]
[1644044337458,0.05,41547.0,41542.0,0.25850669]
[1644044337655,0.05,41550.0,41542.0,0.25850669]
[1644044337855,0.3624,41553.0,41542.0,0.2085067]
[1644044338056,0.060188,41546.0,41542.0,0.2085067]
[1644044338257,0.120371,41546.0,41542.0,0.2085067]
[1644044338457,0.120382,41545.0,41542.0,0.20928427]
[1644044338656,0.060187,41545.0,41543.0,0.20749085]
[1644044339058,0.060187,41545.0,41542.0,0.00295882]
[1644044339497,0.060187,41544.0,41542.0,0.00218125]
[1644044339701,0.060187,41544.0,41542.0,0.002]
[1644044340103,0.060187,41544.0,41542.0,0.272475]
[1644044340498,0.060187,41544.0,41542.0,0.002]
[1644044340699,0.12037657,41544.0,41542.0,0.002]
[1644044340898,0.24076063,41544.0,41542.0,0.002]
[1644044341900,0.331797,41543.0,41542.0,0.002]
[1644044342101,0.381797,41543.0,41542.0,0.002]
[1644044342300,0.481797,41543.0,41542.0,0.002]
[1644044342705,0.68277862,41543.0,41542.0,0.002]
[1644044343147,0.84807794,41543.0,41542.0,0.002]
[1644044343347,0.64709632,41543.0,41542.0,0.002]
[1644044343746,0.481797,41543.0,41542.0,0.002]
[1644044343947,0.481797,41543.0,41542.0,0.00190232]
[1644044344648,0.529797,41543.0,41542.0,0.00190232]
[1644044345046,0.69509632,41543.0,41542.0,0.00190232]
[1644044349301,0.64509632,41543.0,41542.0,0.00190232]
[1644044352591,0.86794654,41543.0,41542.0,0.00190232]
[1644044352792,0.64509632,41543.0,41542.0,0.00190232]
[1644044353197,0.4737217,41543.0,41542.0,0.00190232]
[1644044353994,0.5737217,41543.0,41542.0,0.00190232]
[1644044355198,0.6737217,41543.0,41542.0,0.00190232]
[1644044359151,0.6737217,41543.0,41542.0,0.00098962]
[1644044359351,0.93051821,41543.0,41542.0,0.00098962]
[1644044359953,0.6737217,41543.0,41542.0,0.00098962]
[1644044360957,0.93051821,41543.0,41542.0,0.00098962]
[1644044361154,0.6737217,41543.0,41542.0,0.00098962]
[1644044361358,1.142015,41541.0,41538.0,0.001]
[1644044361554,1.27826614,41539.0,41538.0,0.001]
[1644044361804,1.52626614,41539.0,41538.0,0.001]
[1644044362598,1.58648314,41539.0,41538.0,0.001]
[1644044363198,1.42310912,41539.0,41538.0,0.001]
[1644044364802,1.32982587,41539.0,41538.0,0.001]
[1644044365104,1.32982587,41539.0,41535.0,0.00077245]
[1644044365105,0.392019,41536.0,41535.0,0.00077245]
[1644044365305,0.18067954,41533.0,41524.0,0.0022]
[1644044365561,0.18067954,41533.0,41520.0,0.08660725]
[1644044365562,0.75,41531.0,41520.0,0.003]
[1644044365762,0.6004,41528.0,41520.0,0.003]
[1644044365960,0.89990154,41527.0,41520.0,0.003]
[1644044366165,0.060237,41524.0,41520.0,0.003]
[1644044366358,0.3318,41522.0,41520.0,0.003]
[1644044366560,0.3818,41522.0,41520.0,0.003]
[1644044366759,0.3798,41521.0,41520.0,0.003]
[1644044366958,0.3798,41521.0,41520.0,0.05299999]
[1644044367360,0.3798,41521.0,41520.0,0.2647043]
[1644044367560,0.3798,41521.0,41520.0,0.05299999]
[1644044367761,0.3798,41521.0,41520.0,0.003]
[1644044372001,0.440029,41521.0,41520.0,0.003]
[1644044373850,0.540029,41521.0,41520.0,0.003]
[1644044374053,0.440029,41521.0,41520.0,0.003]
[1644044378205,0.16540862,41523.0,41520.0,0.303]
[1644044378404,0.16540862,41523.0,41522.0,0.04999999]
[1644044378613,0.00077161,41530.0,41522.0,0.04999999]
[1644044378904,0.00077161,41530.0,41521.0,0.00018098]
[1644044378905,0.3318,41529.0,41528.0,0.04999999]
[1644044379702,0.3818,41530.0,41528.0,0.04999999]
[1644044379903,0.00077166,41531.0,41528.0,0.04999999]
[1644044380304,0.22561239,41535.0,41528.0,0.04999999]
[1644044380548,0.3318,41533.0,41532.0,0.04999999]
[1644044381656,0.3318,41533.0,41532.0,0.32717764]
[1644044381850,0.16618023,41535.0,41532.0,0.32717764]
[1644044382053,0.00077161,41535.0,41534.0,0.04999999]
[1644044382449,0.00077161,41535.0,41534.0,0.32459814]
[1644044382850,0.05,41538.0,41534.0,0.32459814]
[1644044383049,0.33257159,41537.0,41534.0,0.32459814]
[1644044383251,0.43257159,41537.0,41534.0,0.2211226]
[1644044383452,0.38179999,41535.0,41532.0,0.00018098]
[1644044383653,0.43179999,41535.0,41531.0,0.00018098]
[1644044383853,0.43179999,41535.0,41530.0,0.01883418]
[1644044383854,0.04999999,41535.0,41530.0,0.01883418]
[1644044384315,0.05077159,41535.0,41530.0,0.01883418]
[1644044385114,0.04999999,41535.0,41530.0,0.01883418]
[1644044385607,0.0507716,41535.0,41533.0,0.24944401]
[1644044385807,0.3318,41534.0,41533.0,0.24944401]
[1644044386708,0.3318,41534.0,41531.0,0.00018098]
[1644044386912,0.3318,41534.0,41529.0,0.00018098]
[1644044387108,0.04999999,41535.0,41527.0,0.26470744]
[1644044387310,0.04999999,41535.0,41527.0,0.26452646]
[1644044387507,0.04999999,41535.0,41527.0,0.26470744]
[1644044387708,0.04999999,41535.0,41532.0,0.26853614]
[1644044387908,0.00077163,41533.0,41532.0,0.26853614]
[1644044388851,0.04999999,41535.0,41532.0,0.26853614]
[1644044389053,0.0507716,41535.0,41532.0,0.26853614]
[1644044389457,0.00077161,41535.0,41532.0,0.26853614]
[1644044390154,0.05077159,41536.0,41532.0,0.26853614]
[1644044391155,0.04999999,41536.0,41532.0,0.26853614]
[1644044391355,0.05077158,41536.0,41532.0,0.26853614]
[1644044392409,0.04999999,41536.0,41532.0,0.26853614]
[1644044392708,0.05077158,41536.0,41532.0,0.26853614]
[1644044393610,0.04999999,41536.0,41532.0,0.26853614]
[1644044393812,0.05077158,41536.0,41532.0,0.26853614]
[1644044394810,0.04999999,41536.0,41532.0,0.26853614]
[1644044395010,0.05077158,41536.0,41532.0,0.26853614]
[1644044395413,0.05077158,41536.0,41532.0,0.25553563]
[1644044396055,0.04999999,41536.0,41532.0,0.25553563]
[1644044396352,0.05077158,41536.0,41532.0,0.25553563]
[1644044396553,0.17118092,41536.0,41532.0,0.25553563]
[1644044396752,0.05077158,41536.0,41532.0,0.25553563]
[1644044397157,0.04999999,41536.0,41532.0,0.25553563]
[1644044397354,0.05077158,41536.0,41532.0,0.25553563]
[1644044398253,0.33257159,41536.0,41532.0,0.25553563]
[1644044398454,0.3318,41536.0,41535.0,0.00028978]
[1644044398753,0.33257159,41536.0,41535.0,0.00028978]
[1644044399603,0.3318,41536.0,41535.0,0.00028978]
[1644044400402,0.2556398,41534.0,41531.0,0.00018197]
[1644044400601,0.0186042,41531.0,41529.0,0.27162079]
[1644044400806,0.0186042,41531.0,41529.0,0.27143882]
[1644044401801,0.0186042,41531.0,41528.0,0.00018197]
[1644044402205,0.0186042,41531.0,41526.0,0.29503244]
[1644044402410,0.0186042,41531.0,41530.0,0.0051684]
[1644044402605,0.3504042,41531.0,41527.0,0.00018197]
[1644044402804,0.3504042,41531.0,41526.0,0.00018197]
[1644044403053,0.3504042,41531.0,41525.0,0.21125356]
[1644044403054,0.04999999,41528.0,41525.0,0.00018197]
[1644044403254,0.0186042,41531.0,41521.0,0.00018197]
[1644044403455,0.0186042,41531.0,41524.0,0.00077178]
[1644044403456,0.04999999,41529.0,41524.0,0.00077178]
[1644044403654,0.3318,41528.0,41524.0,0.00077178]
[1644044403856,0.7639529,41528.0,41526.0,0.0051684]
[1644044404054,0.62660286,41527.0,41525.0,0.00018197]
[1644044404255,0.61368605,41526.0,41524.0,0.00077178]
[1644044404455,0.61368605,41526.0,41522.0,0.00018197]
[1644044404655,0.61368605,41526.0,41524.0,0.00077176]
[1644044404856,0.3318,41525.0,41524.0,0.00077176]
[1644044405061,0.53852025,41525.0,41524.0,0.00077176]
[1644044405256,0.3318,41525.0,41524.0,0.00077176]
[1644044405459,0.3318,41525.0,41524.0,0.00594016]
[1644044405657,0.3318,41525.0,41524.0,0.0051684]
[1644044406356,0.048,41526.0,41524.0,0.0051684]
[1644044406808,0.048,41526.0,41523.0,0.00018197]
[1644044407006,0.048,41526.0,41523.0,0.00077177]
[1644044407506,0.38179999,41524.0,41523.0,0.00077177]
[1644044407708,0.67150053,41524.0,41523.0,0.00077177]
[1644044407906,0.82150053,41524.0,41521.0,0.00018197]
[1644044408105,0.07833437,41522.0,41521.0,0.00077179]
[1644044408308,0.860395,41522.0,41521.0,0.00095376]
[1644044408506,0.78206063,41522.0,41521.0,0.00077179]
[1644044408706,0.88206063,41522.0,41521.0,0.00077179]
[1644044409105,1.04746925,41522.0,41521.0,0.01992739]
[1644044409406,0.88206063,41522.0,41521.0,0.03985478]
[1644044409605,1.04746925,41522.0,41521.0,0.03985478]
[1644044409805,0.88206063,41522.0,41521.0,0.03985478]
[1644044410008,1.04746925,41522.0,41521.0,0.04502318]
[1644044410211,0.88206063,41522.0,41521.0,0.04502318]
[1644044410409,1.10769225,41522.0,41521.0,0.04502318]
[1644044410656,0.94228363,41522.0,41521.0,0.04502318]
[1644044410854,1.10769225,41522.0,41521.0,0.04502318]
[1644044411056,0.89228363,41522.0,41521.0,0.04502318]
[1644044412358,0.94228363,41522.0,41521.0,0.04502318]
[1644044413263,0.65786928,41522.0,41521.0,0.04502318]
[1644044413458,0.38063399,41522.0,41521.0,0.04502318]
[1644044413861,0.28063399,41522.0,41521.0,0.04502318]
[1644044414058,0.23063399,41522.0,41521.0,0.04502318]
[1644044414312,0.23063399,41522.0,41521.0,0.11877767]
[1644044414505,0.16540862,41527.0,41521.0,0.39243086]
[1644044414710,0.20518046,41528.0,41521.0,0.39261283]
[1644044414711,0.38184099,41526.0,41521.0,0.39261283]
[1644044414911,0.04999999,41526.0,41524.0,0.01992739]
[1644044415113,0.04999999,41526.0,41525.0,0.22242172]
[1644044415314,0.16540862,41532.0,41525.0,0.50530466]
[1644044415509,0.20518046,41534.0,41525.0,0.52242172]
[1644044415510,0.00077171,41529.0,41525.0,0.52242172]
[1644044415707,0.00077171,41529.0,41525.0,0.22260369]
[1644044416109,0.00077171,41529.0,41525.0,0.24909369]
[1644044416308,0.30165212,41534.0,41525.0,0.24909369]
[1644044416509,0.04999999,41534.0,41527.0,0.0051684]
[1644044416708,0.04999999,41534.0,41527.0,0.060199]
[1644044416709,0.00077172,41529.0,41527.0,0.060199]
[1644044416909,0.00077172,41529.0,41526.0,0.00018197]
[1644044417108,0.00077172,41529.0,41525.0,0.24909369]
[1644044417709,0.04999999,41532.0,41525.0,0.24909369]
[1644044417911,0.00077172,41529.0,41528.0,0.0051684]
[1644044418358,0.00077172,41529.0,41527.0,0.25252745]
[1644044418557,0.00077172,41529.0,41527.0,0.25234548]
[1644044418759,0.04999999,41533.0,41527.0,0.25234548]
[1644044418961,0.0003029,41530.0,41527.0,0.25252745]
[1644044419160,0.0003029,41530.0,41526.0,0.00018197]
[1644044419357,0.0003029,41530.0,41525.0,0.54909369]
[1644044419559,0.0003029,41530.0,41528.0,0.0051684]
[1644044419762,0.0003029,41530.0,41526.0,0.06038497]
[1644044419958,0.04999999,41533.0,41526.0,0.060203]
[1644044420158,0.04999999,41533.0,41526.0,0.06038497]
[1644044420362,0.00030342,41530.0,41526.0,0.06038497]
[1644044420565,0.00030342,41530.0,41527.0,0.27210467]
[1644044420860,0.05030341,41530.0,41527.0,0.27228664]
[1644044421060,0.05030341,41530.0,41528.0,0.0051684]
[1644044421261,0.04999999,41530.0,41528.0,0.0051684]
[1644044421560,0.04999999,41530.0,41527.0,0.27228664]
[1644044422605,0.04999999,41530.0,41528.0,0.0051684]
[1644044422804,0.04999999,41530.0,41528.0,0.0653684]
[1644044423005,0.04999999,41530.0,41528.0,0.0602]
[1644044424105,0.04999999,41530.0,41529.0,0.0051684]
[1644044424305,0.02351999,41530.0,41529.0,0.0051684]
[1644044424605,0.00077221,41531.0,41529.0,0.0051684]
[1644044424805,0.20518046,41535.0,41529.0,0.0051684]
[1644044424806,0.02351999,41530.0,41529.0,0.0051684]
[1644044425005,0.02351999,41530.0,41528.0,0.02648]
[1644044425405,0.02351999,41530.0,41529.0,0.03985478]
[1644044425658,0.02351999,41530.0,41529.0,0.04502318]
[1644044427261,0.23268888,41530.0,41529.0,0.04502318]
[1644044427960,0.66252988,41530.0,41529.0,0.04502318]
[1644044428161,0.71252988,41530.0,41529.0,0.04502318]
[1644044428362,1.06358069,41530.0,41529.0,0.04502318]
[1644044428561,1.10335253,41530.0,41529.0,0.04502318]
[1644044428761,1.26876115,41530.0,41529.0,0.04502318]
[1644044428960,1.06358069,41530.0,41529.0,0.04502318]
[1644044430010,0.7779385,41530.0,41529.0,0.04502318]
[1644044430407,0.61252988,41530.0,41529.0,0.04502318]
[1644044430809,0.61252988,41530.0,41529.0,0.07150318]
[1644044432409,0.35536099,41530.0,41529.0,0.07150318]
[1644044433261,0.59931617,41530.0,41529.0,0.07150318]
[1644044434059,0.35536099,41530.0,41529.0,0.07150318]
[1644044434359,0.35536099,41530.0,41529.0,0.04502318]
[1644044434560,0.35536099,41530.0,41529.0,0.07150318]
[1644044438812,0.35536099,41530.0,41529.0,0.04502318]
[1644044439009,0.58802123,41530.0,41529.0,0.04502318]
[1644044439409,0.35536099,41530.0,41529.0,0.04502318]
[1644044440208,0.35536099,41530.0,41529.0,0.07150318]
[1644044440661,0.35536099,41530.0,41526.0,0.00018197]
[1644044440662,0.75,41529.0,41526.0,0.00018197]
[1644044440865,0.75,41529.0,41525.0,0.00018197]
[1644044440866,0.392069,41526.0,41525.0,0.00018197]
[1644044441061,0.57108891,41525.0,41524.0,0.02187684]
[1644044441263,0.62108891,41525.0,41524.0,0.02187684]
[1644044441465,0.66908891,41525.0,41524.0,0.02187684]
[1644044441761,0.66908891,41525.0,41524.0,0.02110449]
[1644044441960,0.83449753,41525.0,41524.0,0.02110449]
[1644044442160,0.66908891,41525.0,41524.0,0.02110449]
[1644044442761,0.06022381,41524.0,41523.0,0.00018197]
[1644044442962,0.6528459,41524.0,41522.0,0.00077234]
[1644044443163,0.392066,41523.0,41522.0,0.00077234]
[1644044443364,0.75,41522.0,41519.0,0.00255929]
[1644044443563,0.331841,41521.0,41519.0,0.00255929]
[1644044443763,0.04282655,41520.0,41519.0,0.00255929]
[1644044443967,0.37466755,41520.0,41519.0,0.00255929]
[1644044445709,0.37145984,41520.0,41519.0,0.00255929]
[1644044447409,0.57117003,41520.0,41519.0,0.00255929]
[1644044447610,0.86816306,41520.0,41519.0,0.00255929]
[1644044448059,0.55507118,41520.0,41517.0,0.0027724]
[1644044448261,0.06022898,41519.0,41517.0,0.0027724]
[1644044448461,0.331841,41518.0,41517.0,0.0027724]
[1644044448861,0.431841,41518.0,41517.0,0.002]
[1644044449461,0.49081526,41518.0,41517.0,0.002]
[1644044450062,0.43058626,41518.0,41517.0,0.002]
[1644044452410,0.6,41517.0,41513.0,0.0241508]
[1644044452710,0.02584919,41514.0,41513.0,0.0241508]
[1644044454315,0.1204497,41521.0,41513.0,0.0241508]
[1644044454514,0.02584919,41515.0,41513.0,0.0241508]
[1644044458370,0.02584919,41515.0,41514.0,0.2438997]
[1644044460216,0.02584919,41515.0,41514.0,0.2388997]
[1644044460415,0.02584919,41515.0,41513.0,0.0243326]
[1644044460615,0.02584919,41515.0,41513.0,0.0241508]
[1644044461016,0.03084919,41515.0,41513.0,0.0191508]
[1644044461616,0.03084919,41515.0,41514.0,0.26091685]
[1644044462316,0.03084919,41518.0,41514.0,0.26091685]
[1644044462517,0.03084919,41517.0,41516.0,0.0191508]
[1644044462922,0.03084919,41524.0,41516.0,0.0191508]
[1644044463162,0.36270519,41524.0,41523.0,0.22593584]
[1644044463361,0.36270519,41524.0,41523.0,0.09536921]
[1644044463362,0.331856,41524.0,41523.0,0.09536921]
[1644044463562,0.05169078,41527.0,41523.0,0.09536921]
[1644044463764,0.38354678,41527.0,41526.0,0.0191508]
[1644044464163,0.36270519,41527.0,41526.0,0.0191508]
[1644044464368,0.03084919,41527.0,41526.0,0.0191508]
[1644044464568,0.03084919,41527.0,41526.0,0.24537054]
[1644044464763,0.00030399,41529.0,41526.0,0.52953569]
[1644044464962,0.00030399,41529.0,41528.0,0.0191508]
[1644044465566,0.03084919,41533.0,41528.0,0.0191508]
[1644044465765,0.331856,41532.0,41531.0,0.0191508]
[1644044465964,0.331856,41532.0,41527.0,0.0191508]
[1644044466464,0.331856,41532.0,41527.0,0.23471917]
[1644044466917,0.03084919,41529.0,41527.0,0.23471917]
[1644044467122,0.03084919,41529.0,41527.0,0.0191508]
[1644044467516,0.00030399,41532.0,41527.0,0.0191508]
[1644044467718,0.03084919,41529.0,41527.0,0.0191508]
[1644044469917,0.02921927,41529.0,41527.0,0.02078072]
[1644044470318,0.02921927,41528.0,41527.0,0.02078072]
[1644044470563,0.02921927,41528.0,41527.0,0.01578072]
[1644044470763,0.36607527,41529.0,41527.0,0.01578072]
[1644044471567,0.36607527,41529.0,41523.0,0.31578072]
[1644044471768,0.0602063,41530.0,41523.0,0.01578072]
[1644044471966,0.13080495,41528.0,41523.0,0.01578072]
[1644044472167,0.2229042,41526.0,41523.0,0.01578072]
[1644044472374,0.03421927,41524.0,41523.0,0.01578072]
[1644044472966,0.2229042,41526.0,41523.0,0.01578072]
[1644044473169,0.331856,41525.0,41523.0,0.01578072]
[1644044473566,0.3,41524.0,41517.0,0.33904677]
[1644044473768,0.22367698,41526.0,41517.0,0.33904677]
[1644044473967,0.2229042,41526.0,41517.0,0.33904677]
[1644044474611,0.04999999,41528.0,41520.0,0.26506757]
[1644044475313,0.04999999,41528.0,41517.0,0.33904677]
[1644044475511,0.20531626,41531.0,41517.0,0.33904677]
[1644044475710,0.04999999,41525.0,41517.0,0.33904677]
[1644044476311,0.04999999,41525.0,41519.0,0.20538143]
[1644044476712,0.00077282,41523.0,41518.0,0.00077291]
[1644044477716,0.04999999,41525.0,41518.0,0.21056749]
[1644044477912,0.00077281,41523.0,41518.0,0.2113404]
[1644044478164,2e-08,41523.0,41518.0,0.2113404]
[1644044478564,2e-08,41523.0,41518.0,0.45323066]
[1644044478764,0.04999999,41525.0,41518.0,0.44887674]
[1644044479373,0.04999999,41525.0,41518.0,0.50908174]